fUST/lending_fUST_20250329
["ID","MTS","AMOUNT","RATE_DAILY","PERIOD"]
[356816053,1743244239557,-151.0,0.00024354,2]
[356816054,1743244239567,-151.0,0.00024354,2]
[356816055,1743244239577,-151.0,0.00024354,2]
[356816056,1743244239586,-151.0,0.00024354,2]
[356816057,1743244239596,-151.0,0.00024354,2]
[356816058,1743244239605,-151.0,0.00024354,2]
[356816059,1743244239615,-151.0,0.00024354,2]
[356816060,1743244239624,-151.0,0.00024354,2]
[356816061,1743244239634,-151.0,0.00024354,2]
[356816062,1743244239643,-151.0,0.00024354,2]
[356816063,1743244239657,-151.0,0.00024354,2]
[356816064,1743244239666,-282.82514796,0.00024354,2]
[356816065,1743244239674,-151.0,0.00024354,2]
[356816066,1743244239683,-1357.22820948,0.00024417,5]
[356816067,1743244239696,-800.0,0.00024429,2]
[356816068,1743244239711,-800.0,0.0002443,2]
[356816069,1743244239720,-162.760895,0.00024444,3]
[356816070,1743244239730,-812.72885414,0.00024575,2]
[356816071,1743244239739,-800.0,0.00024587,2]
[356816072,1743244239749,-162.760895,0.000246,5]
[356816073,1743244239759,-30580.11357216,0.00024657,3]
[356816074,1743244239769,-160.0,0.00024657,3]
[356816075,1743244239778,-418.66406265,0.00024657,3]
[356816076,1743244239786,-12458.93820146,0.00024657,3]
[356816077,1743244239795,-160.0,0.00024657,3]
[356816078,1743244239804,-835.30152125,0.00024657,3]
[356816079,1743244239813,-2000.0,0.00024658,5]
[356816080,1743244239823,-582.14217827,0.00024658,2]
[356816081,1743244239832,-301.35086568,0.00024673,2]
[356816082,1743244239841,-800.0,0.00024701,2]
[356816083,1743244239850,-800.0,0.00024802,2]
[356816084,1743244239860,-795.28313026,0.0002481,2]
[356816085,1743244239871,-151.0,0.00024857,2]
[356816086,1743244239880,-500.0,0.00024873,2]
[356816087,1743244239889,-500.0,0.00024873,2]
[356816088,1743244239898,-500.0,0.00024873,2]
[356816089,1743244239906,-500.0,0.00024873,2]
[356816090,1743244239915,-500.0,0.00024873,2]
[356816091,1743244239924,-301.90985087,0.00024873,2]
[356816092,1743244239933,-162.48624767,0.00024873,2]
[356816093,1743244239944,-500.0,0.00024873,2]
[356816094,1743244239954,-500.0,0.00024873,2]
[356816095,1743244239963,-500.0,0.00024873,2]
[356816096,1743244239972,-500.0,0.00024873,2]
[356816097,1743244239982,-164.82480595,0.00024873,2]
[356816098,1743244239991,-500.0,0.00024873,2]
[356816099,1743244240000,-500.0,0.00024873,2]
[356816100,1743244240009,-604.95772534,0.00024873,2]
[356816101,1743244240018,-500.0,0.00024873,2]
[356816102,1743244240028,-526.07225505,0.00024873,2]
[356816103,1743244240037,-267.6283602,0.00024873,2]
[356816104,1743244240047,-500.0,0.00024873,2]
[356816105,1743244240056,-500.0,0.00024873,2]
[356816106,1743244240065,-500.0,0.00024873,2]
[356816107,1743244240074,-500.0,0.00024873,2]
[356816108,1743244240083,-500.0,0.00024873,2]
[356816109,1743244240093,-500.0,0.00024873,2]
[356816110,1743244240102,-500.85926071,0.00024873,2]
[356816111,1743244240112,-162.29420785,0.00024873,2]
[356816112,1743244240122,-500.0,0.00024873,2]
[356816113,1743244240132,-590.79692098,0.00024873,2]
[356816114,1743244240142,-500.0,0.00024873,2]
[356816115,1743244240153,-500.0,0.00024873,2]
[356816116,1743244240165,-500.0,0.00024873,2]
[356816117,1743244240175,-500.93366741,0.00024873,2]
[356816118,1743244240186,-500.0,0.00024873,2]
[356816119,1743244240204,-500.0,0.00024873,2]
[356816120,1743244240215,-502.68607205,0.00024873,2]
[356816121,1743244240226,-500.0,0.00024873,2]
[356816122,1743244240238,-201.4033926,0.00024873,2]
[356816123,1743244240248,-500.0,0.00024873,2]
[356816124,1743244240258,-500.0,0.00024873,2]
[356816125,1743244240269,-500.0,0.00024873,2]
[356816126,1743244240279,-500.0,0.00024873,2]
[356816127,1743244240289,-500.0,0.00024873,2]
[356816128,1743244240299,-500.0,0.00024873,2]
[356816129,1743244240308,-500.60054667,0.00024873,2]
[356816130,1743244240319,-500.0,0.00024873,2]
[356816131,1743244240329,-500.0,0.00024873,2]
[356816132,1743244240339,-500.0,0.00024873,2]
[356816133,1743244240523,-500.0,0.00024873,2]
[356816135,1743244240534,-181.07111937,0.00024873,2]
[356816136,1743244240543,-502.21834172,0.00024873,2]
[356816137,1743244240555,-502.43335075,0.00024873,2]
[356816138,1743244240565,-275.509498,0.000249,7]
[356816139,1743244240574,-151.0,0.000249,7]
[356816141,1743244240585,-151.0,0.000249,7]
[356816142,1743244240594,-435062.075359,0.000249,2]
[356816143,1743244240605,-156.223558,0.000249,7]
[356816144,1743244240614,-153.808314,0.000249,7]
[356816145,1743244240624,-156.223558,0.000249,7]
[356816146,1743244240634,-162.760895,0.000249,2]
[356816147,1743244240644,-263.553627,0.000249,7]
[356816148,1743244240654,-151.0,0.00024902,2]
[356816149,1743244240665,-162.760895,0.00024924,2]
[356816150,1743244240674,-215.34632908,0.00024931,2]
[356816151,1743244240684,-169.37,0.00024931,2]
[356816153,1743244240699,-169.37,0.00024931,2]
[356816155,1743244240709,-169.37,0.00024931,2]
[356816156,1743244240719,-169.37,0.00024931,2]
[356816157,1743244240728,-169.37,0.00024931,2]
[356816158,1743244240742,-169.37264026,0.00024931,2]
[356816160,1743244240752,-162.760895,0.00024948,2]
[356816161,1743244240761,-153.595159,0.00024972,2]
[356816162,1743244240771,-162.760895,0.00024972,2]
[356816163,1743244240780,-160.29437295,0.00024973,2]
[356816164,1743244240790,-388.49489911,0.00024973,2]
[356816165,1743244240799,-231.56566609,0.00024973,2]
[356816166,1743244240809,-500.0,0.00024973,2]
[356816167,1743244240818,-500.0,0.00024973,2]
[356816168,1743244240829,-500.0,0.00024973,2]
[356816169,1743244240838,-417.62958928,0.00024973,2]
[356816170,1743244240849,-626.5461714,0.00024973,2]
[356816171,1743244240858,-500.0,0.00024973,2]
[356816172,1743244240868,-500.0,0.00024973,2]
[356816173,1743244240877,-500.0,0.00024973,2]
[356816174,1743244240887,-153.595159,0.00024996,2]
[356816175,1743244240896,-162.760895,0.00024996,2]
[356816176,1743244240905,-256.1753609,0.00025,3]
[356816177,1743244240914,-400.0,0.00025,2]
[356816179,1743244240923,-40000.0,0.00025,14]
[356816181,1743244240932,-5470.0,0.00025,30]
[356816182,1743244240944,-1052.41949033,0.00025,2]
[356816183,1743244240953,-2592.24550924,0.00025,2]
[356816184,1743244240962,-205.67803486,0.00025,2]
[356816185,1743244240972,-2497.83823561,0.00025,2]
[356816186,1743244240981,-1000.0,0.00025,21]
[356816187,1743244240991,-154.81412406,0.00025,2]
[356816188,1743244241000,-1357.22820948,0.00025176,5]
[356816189,1743244241010,-438.5,0.00025409,15]
[356816190,1743244241019,-151.0,0.0002545,2]
[356816191,1743244241029,-900.0,0.00025469,3]
[356816192,1743244241038,-1000.0,0.000255,2]
[356816193,1743244241048,-2909.93,0.000255,7]
[356816194,1743244241057,-162.760895,0.00025558,3]
[356816195,1743244241067,-587.0,0.00025608,2]
[356816196,1743244241076,-1000.0,0.00025614,2]
[356816197,1743244241086,-166.682195,0.00025698,2]
[356816198,1743244241095,-1357.22820948,0.00025934,6]
[356816199,1743244241104,-290.05620883,0.00025998,2]
[356816200,1743244241114,-1000.0,0.00026,3]
[356816201,1743244241124,-162.760895,0.00026138,5]
[356816202,1743244241134,-628.0,0.000265,2]
[356816203,1743244241143,-162.760895,0.00026672,3]
[356816204,1743244241152,-1357.22820948,0.00026693,6]
[356816205,1743244241162,-365.95573967,0.00026717,2]
[356816206,1743244241171,-5438.99922175,0.0002685,2]
[356816207,1743244241181,-172.84943622,0.00027067,2]
[356816208,1743244241193,-2261.0,0.00027123,2]
[356816209,1743244241203,-1915.0,0.00027123,2]
[356816210,1743244241214,-401.0,0.00027123,2]
[356816211,1743244241223,-2260.767,0.00027141,2]
[356816212,1743244241232,-1000.0,0.00027152,2]
[356816213,1743244241243,-162.760895,0.0002721,7]
[356816214,1743244241252,-263.553627,0.00027252,7]
[356816215,1743244241261,-1000.0,0.00027252,2]
[356816216,1743244241270,-1000.0,0.00027252,2]
[356816217,1743244241279,-683.67877057,0.00027252,2]
[356816218,1743244241288,-150.0,0.00027307,2]
[356816219,1743244241297,-150.0,0.00027307,2]
[356816220,1743244241307,-150.0,0.00027307,2]
[356816222,1743244241316,-150.0,0.00027307,2]
[356816223,1743244241325,-150.0,0.00027327,2]
[356816224,1743244241334,-500.0,0.00027397,5]
[356816225,1743244241343,-500.0,0.00027397,5]
[356816226,1743244241352,-1357.22820948,0.00027452,7]
[356816227,1743244241361,-1005.07344921,0.000275,2]
[356816228,1743244241370,-36621.19809811,0.000275,2]
[356816229,1743244241380,-968.75195335,0.000275,46]
[356816230,1743244241389,-2909.93,0.000275,7]
[356816231,1743244241398,-151.0,0.000275,7]
[356816232,1743244241407,-151.0,0.000275,7]
[356816233,1743244241418,-151.0,0.000275,7]
[356816234,1743244241427,-549.22136,0.000275,2]
[356816235,1743244241437,-549.22136,0.000275,2]
[356816236,1743244241449,-151.0,0.000275,7]
[356816237,1743244241458,-151.0,0.000275,7]
[356816238,1743244241468,-12458.93820146,0.000275,7]
[356816239,1743244241478,-160.0,0.000275,7]
[356816240,1743244241487,-156.223558,0.000275,7]
[356816241,1743244241497,-156.223558,0.000275,7]
[356816242,1743244241507,-835.30152125,0.000275,7]
[356816243,1743244241516,-1067.01816349,0.00027616,34]
[356816244,1743244241526,-162.760895,0.00027675,5]
[356816245,1743244241535,-300.0,0.000277,13]
[356816246,1743244241544,-153.595159,0.00027786,3]
[356816247,1743244241554,-162.760895,0.00027786,3]
[356816248,1743244241563,-823.0,0.00027837,2]
[356816249,1743244241573,-162.760895,0.00027941,7]
[356816250,1743244241582,-32345.02640813,0.0002799,2]
[356816251,1743244241592,-36132.92675459,0.00028,2]
[356816252,1743244241601,-151.558029,0.00028,7]
[356816253,1743244241610,-263.553627,0.00028,7]
[356816254,1743244241619,-2950.9104851,0.00028,2]
[356816255,1743244241629,-159.84573898,0.00028052,5]
[356816256,1743244241638,-1000.0,0.00028052,5]
[356816257,1743244241647,-1000.0,0.00028052,5]
[356816258,1743244241660,-1000.0,0.00028052,5]
[356816259,1743244241669,-1000.0,0.00028052,5]
[356816260,1743244241679,-1000.0,0.00028052,5]
[356816261,1743244241688,-1000.0,0.00028052,5]
[356816262,1743244241699,-1000.0,0.00028052,5]
[356816263,1743244241710,-1000.0,0.00028052,5]
[356816264,1743244241719,-508.30816658,0.00028052,5]
[356816265,1743244241731,-444.26334752,0.00028052,5]
[356816266,1743244241745,-1000.0,0.00028052,5]
[356816267,1743244241756,-1000.0,0.00028052,2]
[356816268,1743244241765,-500.0,0.00028052,5]
[356816269,1743244241776,-1000.0,0.00028052,5]
[356816270,1743244241787,-1000.0,0.00028052,5]
[356816271,1743244241798,-1000.0,0.00028052,5]
[356816272,1743244241807,-1000.0,0.00028052,5]
[356816273,1743244241816,-1000.0,0.00028052,5]
[356816274,1743244241825,-1000.0,0.00028052,5]
[356816275,1743244241835,-1000.0,0.00028052,5]
[356816276,1743244241844,-1000.0,0.00028052,5]
[356816277,1743244241854,-1357.22820948,0.0002821,7]
[356816278,1743244241863,-151.0,0.00028245,7]
[356816279,1743244241873,-160.0,0.000283,7]
[356816280,1743244241882,-418.66406265,0.000283,7]
[356816281,1743244241897,-1000.0,0.00028435,2]
[356816282,1743244241913,-179.24486535,0.00028436,2]
[356816283,1743244241928,-500.0,0.00028504,2]
[356816284,1743244241939,-2182.0813039,0.00028532,2]
[356816285,1743244241954,-151.0,0.00028532,7]
[356816286,1743244241967,-310.11731,0.000286,2]
[356816287,1743244241982,-162.760895,0.00028673,7]
[356816288,1743244241997,-2500.0,0.00028732,3]
[356816289,1743244242010,-2500.0,0.0002874,3]
[356816290,1743244242026,-156.223558,0.00028749,7]
[356816291,1743244242041,-156.223558,0.00028749,7]
[356816292,1743244242055,-2500.0,0.00028749,3]
[356816293,1743244242068,-2500.0,0.00028757,3]
[356816294,1743244242081,-2500.0,0.00028758,3]
[356816295,1743244242096,-2500.0,0.00028766,3]
[356816296,1743244242109,-2500.0,0.00028767,3]
[356816297,1743244242122,-151.0,0.00028767,7]
[356816298,1743244242133,-549.22136,0.00028767,2]
[356816299,1743244242146,-549.22136,0.00028767,2]
[356816300,1743244242159,-906.58274117,0.00028774,3]
[356816301,1743244242179,-1593.41725883,0.00028774,3]
[356816302,1743244242197,-2500.0,0.00028776,3]
[356816303,1743244242211,-2500.0,0.00028776,3]
[356816304,1743244242225,-2500.0,0.00028783,3]
[356816305,1743244242240,-2500.0,0.00028784,3]
[356816306,1743244242252,-2500.0,0.00028785,3]
[356816307,1743244242263,-2500.0,0.00028792,3]
[356816308,1743244242274,-2500.0,0.00028793,3]
[356816309,1743244242287,-2500.0,0.00028793,3]
[356816310,1743244242301,-160.0,0.000288,3]
[356816311,1743244242315,-418.66406265,0.000288,3]
[356816312,1743244242326,-160.0,0.000288,3]
[356816313,1743244242339,-835.30152125,0.000288,3]
[356816314,1743244242351,-124.88016038,0.000288,3]
[356816339,1743244244849,589.0,0.00014,2]
[356816413,1743244335369,165.84662272,0.000199,30]
[356816414,1743244463959,151.96379127,2.5e-06,2]
[356816419,1743245090066,185.198147,0.00013699,2]
[356816421,1743245225122,-300.0,0.00020433,2]
[356816422,1743245225147,-357.80973521,0.00020434,2]
[356816423,1743245227082,-142.19026479,0.00020434,2]
[356816424,1743245227104,-500.0,0.00020434,2]
[356816425,1743245227128,-500.0,0.00020434,2]
[356816426,1743245227151,-500.0,0.00020434,2]
[356816427,1743245227173,-500.0,0.00020434,2]
[356816428,1743245227198,-500.0,0.00020434,2]
[356816429,1743245227220,-500.0,0.00020434,2]
[356816430,1743245227243,-500.0,0.00020434,2]
[356816431,1743245227266,-439.4973415,0.00020434,2]
[356816432,1743245234353,-60.5026585,0.00020434,2]
[356816433,1743245234375,-500.0,0.00020434,2]
[356816434,1743245234401,-500.0,0.00020434,2]
[356816435,1743245234424,-474.8396251,0.00020434,2]
[356816437,1743245250124,-931.23051819,0.00020051,2]
[356816462,1743245350079,-68.76948181,0.00020051,2]
[356816463,1743245350101,-200.38610604,0.00020334,2]
[356816464,1743245363134,-1784.7389909,0.00020334,2]
[356816465,1743245363159,-300.0,0.00020432,2]
[356816466,1743245363183,-500.0,0.00020433,2]
[356816467,1743245363206,-500.0,0.00020433,2]
[356816468,1743245363228,-500.0,0.00020433,2]
[356816469,1743245363252,-500.0,0.00020433,2]
[356816470,1743245363278,-500.0,0.00020433,2]
[356816471,1743245363303,-500.0,0.00020433,2]
[356816472,1743245363326,-500.0,0.00020433,2]
[356816473,1743245363350,-500.0,0.00020433,2]
[356816474,1743245363374,-500.0,0.00020433,2]
[356816475,1743245363397,-500.0,0.00020433,2]
[356816476,1743245363420,-500.0,0.00020433,2]
[356816477,1743245363443,-500.0,0.00020433,2]
[356816478,1743245363466,-500.0,0.00020433,2]
[356816479,1743245363489,-500.0,0.00020433,2]
[356816480,1743245363512,-500.0,0.00020433,2]
[356816481,1743245363536,-500.0,0.00020433,2]
[356816482,1743245363559,-500.0,0.00020433,2]
[356816483,1743245363582,-500.0,0.00020433,2]
[356816484,1743245363604,-500.0,0.00020433,2]
[356816485,1743245363627,-500.0,0.00020433,2]
[356816486,1743245363650,-500.0,0.00020433,2]
[356816487,1743245363674,-500.0,0.00020433,2]
[356816488,1743245363697,-500.0,0.00020433,2]
[356816489,1743245363720,-319.96396764,0.00020433,2]
[356816490,1743245363743,-500.0,0.00020433,2]
[356816491,1743245363765,-500.0,0.00020433,2]
[356816492,1743245363788,-500.0,0.00020433,2]
[356816493,1743245363811,-500.0,0.00020433,2]
[356816494,1743245363834,-500.0,0.00020433,2]
[356816495,1743245363856,-500.0,0.00020433,2]
[356816496,1743245363879,-500.0,0.00020433,2]
[356816497,1743245363902,-500.0,0.00020433,2]
[356816498,1743245363926,-500.0,0.00020433,2]
[356816499,1743245363949,-500.0,0.00020433,2]
[356816500,1743245363972,-500.0,0.00020433,2]
[356816501,1743245363994,-500.0,0.00020433,2]
[356816502,1743245364015,-404.30435671,0.00020433,2]
[356816503,1743245364037,-500.0,0.00020433,2]
[356816504,1743245364066,-500.0,0.00020433,2]
[356816505,1743245364091,-500.0,0.00020433,2]
[356816506,1743245364113,-500.0,0.00020433,2]
[356816507,1743245364139,-500.0,0.00020433,2]
[356816508,1743245364162,-500.0,0.00020433,2]
[356816509,1743245364185,-273.15610876,0.00020433,2]
[356816510,1743245364208,-500.0,0.00020433,2]
[356816511,1743245364232,-439.38196038,0.00020433,2]
[356816512,1743245368109,-60.61803962,0.00020433,2]
[356816513,1743245368136,-500.0,0.00020433,2]
[356816514,1743245368159,-500.0,0.00020433,2]
[356816515,1743245368183,-500.0,0.00020433,2]
[356816516,1743245368205,-500.0,0.00020433,2]
[356816517,1743245368230,-63.47384694,0.00020433,2]
[356816518,1743245368349,-436.52615306,0.00020433,2]
[356816519,1743245368372,-500.0,0.00020433,2]
[356816520,1743245368395,-500.0,0.00020433,2]
[356816521,1743245368419,-500.0,0.00020433,2]
[356816522,1743245368442,-500.0,0.00020433,2]
[356816523,1743245368464,-500.0,0.00020433,2]
[356816524,1743245368487,-500.0,0.00020433,2]
[356816525,1743245368509,-500.0,0.00020433,2]
[356816526,1743245368531,-500.0,0.00020433,2]
[356816527,1743245368553,-500.0,0.00020433,2]
[356816528,1743245368575,-500.0,0.00020433,2]
[356816529,1743245368598,-500.0,0.00020433,2]
[356816530,1743245368620,-500.0,0.00020433,2]
[356816531,1743245368642,-500.0,0.00020433,2]
[356816532,1743245368664,-500.0,0.00020433,2]
[356816533,1743245368686,-500.0,0.00020433,2]
[356816534,1743245368708,-500.0,0.00020433,2]
[356816535,1743245368727,-3770.57908785,0.00020434,2]
[356816536,1743245368747,-24900.0,0.00020435,2]
[356816537,1743245368767,-500.0,0.00020986,2]
[356816538,1743245368789,-500.0,0.00020986,2]
[356816539,1743245368810,-439.26141965,0.00020986,2]
[356816540,1743245368831,-163.23012767,0.00020986,2]
[356816541,1743245368852,-3387.2535759,0.00020987,2]
[356816565,1743245431912,-6612.7464241,0.00020987,2]
[356816567,1743245431922,-300.0,0.00021124,2]
[356816569,1743245431932,-500.0,0.00021125,2]
[356816571,1743245431941,-500.0,0.00021125,2]
[356816572,1743245431949,-500.0,0.00021125,2]
[356816574,1743245431958,-500.0,0.00021125,2]
[356816576,1743245431967,-500.0,0.00021125,2]
[356816577,1743245431976,-500.0,0.00021125,2]
[356816579,1743245431986,-500.0,0.00021164,2]
[356816581,1743245431995,-500.0,0.00021164,2]
[356816582,1743245432004,-500.0,0.00021164,2]
[356816583,1743245432013,-500.0,0.00021164,2]
[356816584,1743245432023,-500.0,0.00021164,2]
[356816585,1743245432032,-1000.0,0.00021225,2]
[356816586,1743245432041,-500.04461217,0.0002123,2]
[356816587,1743245432050,-3985.898162,0.00021382,2]
[356816588,1743245432059,-622.2,0.00021439,2]
[356816589,1743245432069,-160.02,0.0002144,2]
[356816590,1743245432081,-250.0,0.00021454,2]
[356816592,1743245432090,-754.150878,0.00021454,2]
[356816594,1743245432099,-500.0,0.00021473,2]
[356816596,1743245432108,-500.0,0.00021473,2]
[356816598,1743245432118,-500.0,0.00021473,2]
[356816600,1743245432127,-358.1349926,0.00021473,2]
[356816602,1743245432136,-500.0,0.00021473,2]
[356816604,1743245432146,-247.04726915,0.00021473,2]
[356816605,1743245432155,-500.0,0.00021473,2]
[356816606,1743245432164,-645.2214,0.00021494,2]
[356816607,1743245432173,-669.0945918,0.00021549,2]
[356816609,1743245432182,-5000.0,0.00021554,2]
[356816611,1743245432191,-693.8510917,0.00021604,2]
[356816613,1743245432199,-181.85952918,0.00021638,2]
[356816615,1743245432209,-504.02827206,0.00021638,2]
[356816617,1743245432218,-500.0,0.00021638,2]
[356816619,1743245432227,-500.0,0.00021638,2]
[356816621,1743245432236,-500.0,0.00021638,2]
[356816623,1743245432245,-501.86624987,0.00021638,2]
[356816625,1743245432254,-265.25930081,0.00021638,2]
[356816627,1743245432263,-475.02761296,0.00021638,2]
[356816629,1743245432272,-500.0,0.00021638,2]
[356816630,1743245432281,-513.1779678,0.00021638,2]
[356816632,1743245432290,-500.0,0.00021638,2]
[356816633,1743245432299,-478.46810924,0.00021638,2]
[356816635,1743245432308,-201.56561023,0.00021638,2]
[356816637,1743245432317,-500.0,0.00021638,2]
[356816639,1743245432326,-1000.0,0.00021653,2]
[356816641,1743245432336,-1000.0,0.00021653,2]
[356816642,1743245432344,-719.52358209,0.00021659,2]
[356816643,1743245432353,-746.14595463,0.00021714,2]
[356816644,1743245432362,-773.75335495,0.00021769,2]
[356816645,1743245432371,-1000.0,0.00021772,2]
[356816646,1743245432381,-802.38222908,0.00021824,2]
[356816647,1743245432390,-500.0,0.00021844,2]
[356816648,1743245432399,-832.07037156,0.00021879,2]
[356816649,1743245432408,-1000.0,0.00021888,2]
[356816650,1743245432417,-862.8569753,0.00021934,2]
[356816651,1743245432426,-1000.0,0.00021989,2]
[356816652,1743245432435,-1000.0,0.00021989,2]
[356816653,1743245432444,-894.78268339,0.00021989,2]
[356816654,1743245432453,-265.0,0.00022,2]
[356816655,1743245432462,-927.88964268,0.00022044,2]
[356816656,1743245432471,-962.22155946,0.00022099,2]
[356816657,1743245432480,-997.82375716,0.00022154,2]
[356816658,1743245432489,-1034.74323617,0.00022209,2]
[356816659,1743245432498,-1073.02873591,0.00022264,2]
[356816660,1743245432507,-13675.23344759,0.00022361,2]
[356816661,1743245432516,-500.0,0.00022473,2]
[356816662,1743245432526,-500.0,0.00022473,2]
[356816663,1743245432536,-504.28806655,0.00022473,2]
[356816664,1743245432547,-500.0,0.00022473,2]
[356816665,1743245432556,-1000.0,0.00022522,2]
[356816666,1743245432565,-1000.0,0.00022523,2]
[356816667,1743245432574,-1000.0,0.00022523,2]
[356816668,1743245432583,-1000.0,0.00022523,2]
[356816669,1743245432592,-1000.0,0.00022523,2]
[356816670,1743245432604,-1000.0,0.00022523,2]
[356816671,1743245432615,-1000.0,0.00022523,2]
[356816672,1743245432624,-1000.0,0.00022523,2]
[356816673,1743245432633,-1000.0,0.00022523,2]
[356816674,1743245432642,-1000.0,0.00022523,2]
[356816675,1743245432651,-852.12,0.00022523,2]
[356816676,1743245432660,-500.0,0.00022573,2]
[356816677,1743245432671,-2036.95,0.000226,7]
[356816678,1743245432681,-420.0,0.00022975,2]
[356816679,1743245432690,-197.58946377,0.00023746,2]
[356816680,1743245432699,-995.30068701,0.000238,4]
[356816681,1743245432708,-995.30068695,0.000238,4]
[356816682,1743245432717,-995.30068695,0.000238,4]
[356816683,1743245432726,-418.66406265,0.00023846,2]
[356816684,1743245432735,-3526.09103085,0.00023846,2]
[356816685,1743245432744,-835.30152125,0.00023846,2]
[356816686,1743245432754,-1926.62808498,0.00024034,2]
[356816687,1743245432763,-500.0,0.00024045,2]
[356816688,1743245432773,-160.0,0.00024137,2]
[356816689,1743245432782,-1000.0,0.00024193,2]
[356816690,1743245432791,-995.30068695,0.00024279,5]
[356816691,1743245432801,-151.0,0.00024354,2]
[356816692,1743245432810,-197.58946375,0.00024516,2]
[356816693,1743245432820,-1018.84533587,0.00024524,2]
[356816694,1743245432829,-556.208,0.00024534,2]
[356816695,1743245432839,-264.857,0.00024534,2]
[356816696,1743245432848,-2261.0,0.00024534,2]
[356816697,1743245432857,-1915.0,0.00024534,2]
[356816698,1743245432866,-380.0,0.00024658,2]
[356816699,1743245432875,-14472.01809351,0.00024837,2]
[356816700,1743245432884,-500.0,0.00024873,2]
[356816701,1743245432892,-500.0,0.00024873,2]
[356816702,1743245432901,-500.0,0.00024873,2]
[356816703,1743245432910,-500.0,0.00024873,2]
[356816704,1743245432919,-500.0,0.00024873,2]
[356816705,1743245432928,-197.1239696,0.00024873,2]
[356816706,1743245432937,-500.0,0.00024873,2]
[356816707,1743245432945,-500.0,0.00024873,2]
[356816708,1743245432954,-500.0,0.00024873,2]
[356816709,1743245432963,-500.0,0.00024873,2]
[356816710,1743245432972,-500.0,0.00024873,2]
[356816711,1743245432981,-500.0,0.00024873,2]
[356816712,1743245432990,-500.0,0.00024873,2]
[356816713,1743245432999,-500.0,0.00024873,2]
[356816714,1743245433009,-500.0,0.00024873,2]
[356816715,1743245433018,-511.32180475,0.00024873,2]
[356816716,1743245433027,-338.5603083,0.00024873,2]
[356816717,1743245433036,-500.0,0.00024873,2]
[356816718,1743245433045,-500.0,0.00024873,2]
[356816719,1743245433055,-253645.377391,0.000249,2]
[356816720,1743245433064,-151.0,0.00024902,2]
[356816721,1743245433078,-290.18619393,0.00024931,5]
[356816722,1743245433087,-1163.73035896,0.00024969,2]
[356816723,1743245433096,-587.0,0.00024989,2]
[356816724,1743245433105,-1601.82003838,0.0002499,2]
[356816725,1743245433115,-204.18500848,0.00025069,2]
[356816726,1743245433125,-995.30068695,0.00025072,5]
[356816727,1743245433135,-197.58946375,0.00025286,2]
[356816728,1743245433144,-160.735,0.00025371,2]
[356816729,1743245433154,-500.0,0.00025373,2]
[356816730,1743245433164,-500.0,0.00025373,2]
[356816731,1743245433173,-500.0,0.00025373,2]
[356816732,1743245433182,-500.0,0.00025373,2]
[356816733,1743245433191,-500.0,0.00025373,2]
[356816734,1743245433201,-500.0,0.00025373,2]
[356816735,1743245433210,-500.0,0.00025373,2]
[356816736,1743245433219,-500.0,0.00025373,2]
[356816737,1743245433229,-504.62008536,0.00025373,2]
[356816738,1743245433239,-273.52134318,0.00025373,2]
[356816739,1743245433248,-500.0,0.00025373,2]
[356816740,1743245433257,-500.0,0.00025373,2]